bitfinex-derivatives/quotes_BTCF0:USTF0_20260207
["timestamp","ask_amount","ask_price","bid_price","bid_amount"]
[1770429083566,0.40884577,70781.0,70761.0,0.16544866]
[1770429083966,0.014138,70778.0,70761.0,0.16544866]
[1770429085265,0.014138,70778.0,70760.0,0.16544866]
[1770429085466,0.014138,70778.0,70761.0,0.16544866]
[1770429085660,0.014136,70789.0,70758.0,5.1e-07]
[1770429085857,0.40884877,70769.0,70751.0,0.27560935]
[1770429086066,0.01414,70766.0,70750.0,0.62013238]
[1770429086662,0.014141,70760.0,70750.0,0.62013238]
[1770429086871,0.014142,70757.0,70745.0,0.62021333]
[1770429087066,0.014142,70758.0,70735.0,0.014146]
[1770429087375,0.39470877,70761.0,70737.0,0.014146]
[1770429087565,0.014141,70760.0,70737.0,0.014146]
[1770429087766,0.39470877,70761.0,70735.0,0.41155447]
[1770429087964,0.40884977,70761.0,70735.0,0.41155447]
[1770429088273,0.39470877,70761.0,70735.0,0.41155447]
[1770429089275,0.39470877,70761.0,70745.0,0.001]
[1770429089471,0.014142,70758.0,70745.0,0.001]
[1770429089873,0.39470877,70761.0,70727.0,0.014148]
[1770429090063,0.39470877,70754.0,70729.0,0.014147]
[1770429090268,0.39470877,70754.0,70731.0,0.014147]
[1770429090467,0.39470877,70754.0,70732.0,0.21243209]
[1770429090774,0.014144,70748.0,70724.0,0.014149]
[1770429090972,0.39470877,70752.0,70725.0,0.21244106]
[1770429091175,0.39470877,70752.0,70723.0,0.39740847]
[1770429091176,0.014145,70742.0,70726.0,0.21244106]
[1770429091370,0.014144,70745.0,70727.0,0.1429412]
[1770429091572,0.014145,70742.0,70723.0,0.39740847]
[1770429091769,0.014144,70745.0,70723.0,0.39457847]
[1770429091974,0.39470877,70752.0,70714.0,0.39740847]
[1770429092175,0.014145,70744.0,70714.0,0.34208747]
[1770429092674,0.014149,70723.0,70703.0,0.39740847]
[1770429092976,0.014149,70725.0,70703.0,0.41156147]
[1770429093177,0.014149,70723.0,70703.0,0.39740847]
[1770429093379,0.014149,70721.0,70703.0,0.39740847]
[1770429093576,0.01415,70719.0,70703.0,0.39740847]
[1770429093776,0.01415,70717.0,70695.0,0.4150395]
[1770429094178,0.39470877,70726.0,70693.0,0.81244797]
[1770429094677,0.01415,70717.0,70693.0,0.39740847]
[1770429094980,0.014151,70715.0,70693.0,0.39740847]
[1770429095679,0.014151,70715.0,70693.0,0.81244797]
[1770429095881,0.39470877,70726.0,70702.0,0.34603566]
[1770429096074,0.39470877,70726.0,70698.0,0.34603566]
[1770429096276,0.014151,70715.0,70697.0,0.34603566]
[1770429096779,0.014151,70715.0,70696.0,0.34603566]
[1770429096979,0.56583362,70719.0,70700.0,0.20751138]
[1770429097180,0.014151,70713.0,70694.0,0.34603566]
[1770429097378,0.014151,70713.0,70690.0,0.014155]
[1770429098885,0.014152,70707.0,70684.0,0.58098735]
[1770429099077,0.014152,70709.0,70684.0,0.58098735]
[1770429099771,0.014153,70704.0,70684.0,0.56683035]
[1770429101184,0.56583362,70710.0,70684.0,0.56683035]
[1770429101185,0.014152,70707.0,70684.0,0.56683035]
[1770429102083,0.56583362,70710.0,70679.0,0.014158]
[1770429102387,0.014148,70728.0,70676.0,0.56683035]
[1770429102388,0.014154,70695.0,70676.0,0.56683035]
[1770429102785,0.014155,70693.0,70667.0,0.56683035]
[1770429103386,0.014154,70696.0,70673.0,0.01345865]
[1770429104590,0.014154,70696.0,70673.0,0.580289]
[1770429104893,0.57998762,70699.0,70675.0,0.58098835]
[1770429105087,0.014154,70696.0,70675.0,0.58098835]
[1770429105294,0.56583362,70708.0,70678.0,0.56683035]
[1770429105483,0.014153,70701.0,70679.0,0.58098835]
[1770429106290,0.014154,70699.0,70679.0,0.56683035]
[1770429106883,0.56583362,70705.0,70679.0,0.56683035]
[1770429107088,0.014155,70694.0,70671.0,0.014159]
[1770429107491,0.014155,70692.0,70671.0,0.014159]
[1770429107997,0.56583362,70697.0,70675.0,0.014158]
[1770429108295,0.014154,70696.0,70675.0,0.014158]
[1770429108493,0.014155,70694.0,70672.0,0.58098935]
[1770429109289,0.014155,70692.0,70672.0,0.58098935]
[1770429109992,0.01415,70717.0,70662.0,0.014161]
[1770429109993,0.56583362,70719.0,70688.0,0.56683035]
[1770429110293,0.56583362,70719.0,70690.0,0.56683035]
[1770429110794,0.014149,70724.0,70678.0,0.56683035]
[1770429110795,0.014154,70696.0,70678.0,0.56683035]
[1770429111592,0.014155,70694.0,70678.0,0.56683035]
[1770429112197,0.014154,70697.0,70678.0,0.56683035]
[1770429112600,0.014155,70695.0,70678.0,0.56683035]
[1770429113899,0.014155,70695.0,70674.0,0.014159]
[1770429114800,0.014154,70698.0,70669.0,0.56683035]
[1770429114991,0.014154,70698.0,70672.0,0.56683035]
[1770429115592,0.014153,70702.0,70682.0,0.56683035]
[1770429115799,0.014154,70700.0,70682.0,0.56683035]
[1770429117194,0.56583362,70706.0,70682.0,0.56683035]
[1770429117599,0.014154,70698.0,70682.0,0.56683035]
[1770429118003,0.014153,70701.0,70682.0,0.56683035]
[1770429118204,0.56583362,70708.0,70682.0,0.56683035]
[1770429118398,0.56583362,70705.0,70682.0,0.56683035]
[1770429118598,0.014154,70698.0,70682.0,0.56683035]
[1770429119600,0.56583362,70705.0,70682.0,0.56683035]
[1770429119999,0.014154,70695.0,70682.0,0.56683035]
[1770429120200,0.014154,70696.0,70682.0,0.56683035]
[1770429120501,0.56583362,70698.0,70677.0,0.11014633]
[1770429120904,0.014155,70692.0,70678.0,0.32274891]
[1770429121105,0.014155,70690.0,70677.0,0.11014633]
[1770429121804,0.56583362,70698.0,70677.0,0.11014633]
[1770429122199,0.56583362,70698.0,70677.0,0.27560486]
[1770429122805,0.014154,70699.0,70680.0,0.56683035]
[1770429123007,0.014154,70699.0,70681.0,1.05596653]
[1770429123304,0.014154,70697.0,70681.0,0.56683035]
[1770429123700,0.014154,70695.0,70681.0,0.56683035]
[1770429124507,0.014154,70695.0,70680.0,0.27654287]
[1770429124894,0.014155,70692.0,70680.0,0.27654287]
[1770429125206,0.014156,70690.0,70675.0,0.27654287]
[1770429125504,0.014155,70693.0,70676.0,0.48915431]
[1770429125703,0.014155,70691.0,70676.0,0.27654287]
[1770429127302,0.014153,70701.0,70676.0,0.27654287]
[1770429127303,0.55055581,70689.0,70676.0,0.27654287]
[1770429127509,0.014157,70681.0,70665.0,0.16545853]
[1770429127704,0.55055581,70689.0,70666.0,0.21262951]
[1770429127905,0.014158,70677.0,70663.0,0.51280547]
[1770429128105,0.014158,70677.0,70664.0,0.21264022]
[1770429128305,0.014158,70677.0,70665.0,0.12041022]
[1770429128502,0.54611288,70684.0,70660.0,0.16545853]
[1770429128703,0.01416,70669.0,70654.0,0.54241724]
[1770429128906,0.01416,70667.0,70654.0,0.54241724]
[1770429129104,0.014157,70685.0,70654.0,0.54241724]
[1770429129105,0.54611288,70677.0,70654.0,0.54241724]
[1770429129299,0.014158,70678.0,70649.0,0.16545853]
[1770429129300,0.54611288,70674.0,70649.0,0.16545853]
[1770429129510,0.54611288,70671.0,70645.0,0.54241724]
[1770429129707,0.014162,70657.0,70645.0,0.54241724]
[1770429130311,0.014163,70655.0,70645.0,0.54241724]
[1770429130501,0.014164,70649.0,70634.0,0.54241724]
[1770429130707,0.014164,70650.0,70634.0,0.54241724]
[1770429130907,0.014164,70646.0,70634.0,0.54241724]
[1770429132119,0.014165,70643.0,70625.0,0.70787577]
[1770429132313,0.014165,70643.0,70625.0,0.54241724]
[1770429133016,0.54611288,70654.0,70625.0,0.54241724]
[1770429133316,0.014164,70646.0,70625.0,0.54241724]
[1770429133614,0.54611288,70654.0,70625.0,0.54241724]
[1770429133814,0.014165,70642.0,70625.0,0.54241724]
[1770429134422,0.014162,70656.0,70614.0,0.20751138]
[1770429134423,0.014166,70638.0,70623.0,0.16545853]
[1770429134608,0.014166,70638.0,70622.0,0.16545853]
[1770429134808,0.54611288,70655.0,70623.0,0.54241724]
[1770429136416,0.014164,70645.0,70623.0,0.55658624]
[1770429137017,0.014165,70643.0,70623.0,0.54241724]
[1770429138819,0.54611288,70665.0,70623.0,0.54241724]
[1770429139127,0.014163,70650.0,70632.0,0.54241724]
[1770429139315,0.014164,70647.0,70632.0,0.54241724]
[1770429139517,0.014166,70639.0,70622.0,0.70787577]
[1770429139714,0.014163,70653.0,70622.0,0.70787577]
[1770429139715,0.014166,70636.0,70622.0,0.54241724]
[1770429140025,0.014163,70651.0,70622.0,0.54241724]
[1770429140026,0.014166,70637.0,70622.0,0.54241724]
[1770429140519,0.014167,70635.0,70622.0,0.54241724]
[1770429140722,0.014167,70635.0,70622.0,0.54341724]
[1770429141417,0.014168,70630.0,70614.0,0.70787577]
[1770429141727,0.014167,70634.0,70615.0,0.21276762]
[1770429142023,0.014167,70634.0,70614.0,0.54241724]
[1770429142220,0.014167,70631.0,70614.0,0.54241724]
[1770429143728,0.54611288,70634.0,70614.0,0.54241724]
[1770429144019,0.54611288,70634.0,70604.0,0.70807577]
[1770429144220,0.54611288,70634.0,70604.0,0.54261724]
[1770429144221,0.01417,70620.0,70604.0,0.54261724]
[1770429144620,0.014169,70623.0,70604.0,0.54241724]
[1770429145222,0.014169,70621.0,70604.0,0.54241724]
[1770429146420,0.01417,70620.0,70604.0,0.54241724]
[1770429147228,0.54611288,70629.0,70597.0,0.54261724]
[1770429147426,0.014171,70614.0,70597.0,0.54261724]
[1770429147824,0.014171,70612.0,70597.0,0.54261724]
[1770429148128,0.014168,70630.0,70597.0,0.54241724]
[1770429148129,0.014172,70609.0,70597.0,0.54241724]
[1770429148929,0.014168,70630.0,70597.0,0.54241724]
[1770429149129,0.01417,70619.0,70599.0,0.54241724]
[1770429149529,0.01417,70617.0,70599.0,0.54241724]
[1770429150728,0.014171,70615.0,70599.0,0.54241724]
[1770429151630,0.014171,70613.0,70599.0,0.54241724]
[1770429151835,0.014172,70609.0,70587.0,0.54241724]
[1770429152032,0.56028188,70622.0,70587.0,0.54241724]
[1770429152033,0.014172,70606.0,70587.0,0.54241724]
[1770429152233,0.54611288,70612.0,70587.0,0.54241724]
[1770429152531,0.54611288,70620.0,70587.0,0.54241724]
[1770429152729,0.54611288,70620.0,70591.0,0.54241724]
[1770429152929,0.014171,70612.0,70591.0,0.54241724]
[1770429153130,0.014172,70610.0,70591.0,0.54241724]
[1770429153326,0.014172,70608.0,70591.0,0.54241724]
[1770429153524,0.014171,70611.0,70591.0,0.54241724]
[1770429153730,0.014173,70604.0,70591.0,0.54241724]
[1770429154225,0.54611288,70627.0,70593.0,0.54241724]
[1770429154430,0.54611288,70626.0,70593.0,0.54241724]
[1770429154637,0.54611288,70623.0,70593.0,0.54241724]
[1770429155034,0.014172,70606.0,70593.0,0.54241724]
[1770429155431,0.014173,70604.0,70584.0,0.54241724]
[1770429156330,0.014173,70604.0,70585.0,0.21286318]
[1770429156631,0.014173,70604.0,70584.0,0.54241724]
[1770429156827,0.55093895,70618.0,70591.0,0.57393181]
[1770429157038,0.014172,70610.0,70591.0,0.57393181]
[1770429158239,0.014171,70613.0,70591.0,0.57393181]
[1770429158431,0.014171,70613.0,70591.0,0.58810681]
[1770429158627,0.014171,70611.0,70591.0,0.57393181]
[1770429160234,0.014171,70614.0,70593.0,0.57393181]
[1770429161637,0.014171,70612.0,70593.0,0.57393181]
[1770429162835,0.014172,70609.0,70593.0,0.57393181]
[1770429164142,0.014172,70607.0,70593.0,0.57393181]
[1770429164547,0.55093895,70609.0,70582.0,0.16545853]
[1770429164849,0.014176,70590.0,70577.0,0.57393181]
[1770429165051,0.014175,70593.0,70577.0,0.57393181]
[1770429165242,0.014175,70591.0,70577.0,0.57393181]
[1770429165644,0.014178,70579.0,70569.0,0.57393181]
[1770429166141,0.55093895,70588.0,70557.0,0.57393181]
[1770429166142,0.014178,70577.0,70557.0,0.57393181]
[1770429166342,0.55093895,70584.0,70557.0,0.57393181]
[1770429166644,0.55093895,70581.0,70557.0,0.57393181]
[1770429167044,0.014178,70577.0,70557.0,0.57393181]
[1770429167246,0.014179,70574.0,70557.0,0.57393181]
[1770429167442,0.014179,70574.0,70557.0,0.43187181]
[1770429167743,0.014177,70581.0,70561.0,0.57393181]
[1770429167948,0.014178,70579.0,70561.0,0.57393181]
[1770429169146,0.55093895,70584.0,70561.0,0.57393181]
[1770429169549,0.014178,70579.0,70561.0,0.57393181]
[1770429169846,0.014178,70577.0,70561.0,0.57393181]
[1770429171549,0.014177,70583.0,70561.0,0.57393181]
[1770429171749,0.014174,70600.0,70565.0,0.57393181]
[1770429171948,0.56511295,70600.0,70565.0,0.57393181]
[1770429172251,0.014175,70590.0,70567.0,0.57393181]
[1770429172756,0.014174,70597.0,70574.0,0.57393181]
[1770429172953,0.014174,70597.0,70576.0,0.57393181]
[1770429173555,0.014175,70595.0,70576.0,0.57393181]
[1770429174252,0.014174,70596.0,70576.0,0.57393181]
[1770429174453,0.001,70600.0,70576.0,0.57393181]
[1770429174656,0.55193895,70600.0,70576.0,0.57393181]
[1770429174960,0.55093895,70600.0,70576.0,0.57393181]
[1770429175162,0.014176,70588.0,70568.0,0.57393181]
[1770429175648,0.014177,70585.0,70568.0,0.57393181]
[1770429176659,0.014176,70588.0,70568.0,0.57393181]
[1770429177065,0.014175,70592.0,70568.0,0.57393181]
[1770429177252,0.014176,70590.0,70568.0,0.58811181]
[1770429180258,0.55093895,70599.0,70568.0,0.57393181]
[1770429180466,0.014176,70588.0,70568.0,0.57393181]
[1770429180766,0.014176,70588.0,70570.0,0.57393181]
[1770429184665,0.55093895,70590.0,70563.0,0.57393181]
[1770429184859,0.55093895,70590.0,70569.0,0.0002]
[1770429185059,0.014178,70577.0,70563.0,0.57393181]
[1770429185260,0.014178,70577.0,70563.0,0.43186181]
[1770429187073,0.55093895,70584.0,70563.0,0.43186181]
[1770429187961,0.014179,70574.0,70563.0,0.43186181]
[1770429188165,0.52735979,70581.0,70556.0,0.56555538]
[1770429188564,0.52735979,70579.0,70556.0,0.56555538]
[1770429188763,0.52735979,70575.0,70556.0,0.56555538]
[1770429189064,0.54153879,70574.0,70556.0,0.26475538]
[1770429189265,0.014181,70562.0,70556.0,0.26475538]
[1770429189465,0.52735979,70570.0,70545.0,0.56555538]
[1770429189660,0.52735979,70567.0,70545.0,0.56555538]
[1770429189862,0.014182,70560.0,70545.0,0.56555538]
[1770429190062,0.01418,70566.0,70545.0,0.56555538]
[1770429190261,0.014179,70572.0,70553.0,0.56555538]
[1770429190865,0.014179,70575.0,70553.0,0.57973838]
[1770429191167,0.014179,70572.0,70553.0,0.56555538]
[1770429191362,0.014179,70575.0,70555.0,0.56555538]
[1770429191561,0.014179,70573.0,70555.0,0.56555538]
[1770429191763,0.014179,70571.0,70555.0,0.56555538]
[1770429192069,0.014179,70574.0,70555.0,0.56555538]
[1770429192268,0.52735979,70591.0,70557.0,0.56555538]
[1770429192862,0.014177,70581.0,70561.0,0.56555538]
[1770429193464,0.014176,70588.0,70567.0,0.56555538]
[1770429193858,0.52735979,70598.0,70567.0,0.56555538]
[1770429194057,0.001,70591.0,70571.0,0.56555538]
[1770429194259,0.014173,70601.0,70563.0,0.0002]
[1770429194260,0.014173,70601.0,70575.0,0.56555538]
[1770429194663,0.52735979,70613.0,70579.0,0.56555538]
[1770429194862,0.52735979,70613.0,70581.0,0.56555538]
[1770429194863,0.014172,70607.0,70581.0,0.56555538]
[1770429195260,0.014172,70609.0,70587.0,0.56555538]
[1770429195464,0.52735979,70613.0,70587.0,0.56555538]
[1770429195663,0.014172,70608.0,70587.0,0.56555538]
[1770429195864,0.014171,70611.0,70588.0,0.014176]
[1770429196072,0.014171,70611.0,70575.0,0.20751138]
[1770429196073,0.014167,70632.0,70608.0,0.56555538]
[1770429196268,0.014168,70630.0,70608.0,0.56555538]
[1770429196471,0.005,70645.0,70615.0,0.56555538]
[1770429196764,0.014165,70645.0,70621.0,0.56555538]
[1770429196963,0.014165,70643.0,70621.0,0.56555538]
[1770429197365,0.014165,70643.0,70603.0,0.22168438]
[1770429197366,0.52735979,70635.0,70613.0,0.56555538]
[1770429197971,0.014167,70633.0,70613.0,0.56555538]
[1770429198171,0.014168,70630.0,70613.0,0.56555538]
[1770429198465,0.014167,70634.0,70613.0,0.56555538]
[1770429198669,0.014167,70631.0,70613.0,0.56555538]
[1770429199059,0.014168,70628.0,70613.0,0.56555538]
[1770429199265,0.014167,70632.0,70613.0,0.56555538]
[1770429199461,0.52735979,70644.0,70613.0,0.56555538]
[1770429199462,0.014166,70635.0,70613.0,0.56555538]
[1770429199758,0.014167,70632.0,70613.0,0.56555538]
[1770429199962,0.014166,70636.0,70613.0,0.56555538]
[1770429200158,0.014166,70639.0,70613.0,0.56555538]
[1770429200365,0.014165,70643.0,70615.0,0.56555538]
[1770429200870,0.014165,70645.0,70617.0,0.56555538]
[1770429201064,0.014165,70642.0,70617.0,0.56555538]
[1770429201265,0.52735979,70643.0,70617.0,0.56555538]
[1770429201464,0.014164,70646.0,70617.0,0.56555538]
[1770429202567,0.014162,70659.0,70631.0,0.56555538]
[1770429202772,0.52735979,70665.0,70631.0,0.56555538]
[1770429203370,0.52735979,70654.0,70618.0,0.01417]
[1770429203570,0.52735979,70654.0,70619.0,0.56555538]
[1770429204074,0.014165,70644.0,70619.0,0.56555538]
[1770429207272,0.014164,70648.0,70623.0,0.56555538]
[1770429207873,0.014163,70652.0,70626.0,0.56555538]
[1770429208576,0.52735979,70663.0,70626.0,0.56555538]
[1770429208766,0.014164,70649.0,70626.0,0.56555538]
[1770429208972,0.014163,70652.0,70626.0,0.57972338]
[1770429209379,0.014164,70650.0,70626.0,0.57972338]
[1770429209573,0.014164,70648.0,70626.0,0.56555538]
[1770429209774,0.014164,70646.0,70626.0,0.56555538]
[1770429212075,0.54152079,70661.0,70626.0,0.56555538]
[1770429212275,0.52735979,70656.0,70626.0,0.56555538]
[1770429212475,0.014165,70644.0,70626.0,0.56555538]
[1770429213373,0.014164,70647.0,70626.0,0.56555538]
[1770429213976,0.014164,70650.0,70626.0,0.56555538]
[1770429214182,0.014164,70650.0,70628.0,0.56555538]
[1770429216682,0.014164,70646.0,70628.0,0.56555538]
[1770429217381,0.54950449,70654.0,70628.0,0.56555538]
[1770429217382,0.014164,70649.0,70628.0,0.56555538]
[1770429217587,0.014164,70650.0,70628.0,0.57972338]
[1770429218482,0.014163,70653.0,70628.0,0.57972338]
[1770429219782,0.014163,70653.0,70631.0,0.52692949]
[1770429220380,0.014163,70651.0,70631.0,0.52692949]
[1770429224487,0.54950449,70656.0,70631.0,0.52692949]
[1770429224691,0.54950449,70648.0,70627.0,0.52692949]
[1770429224889,0.014165,70644.0,70627.0,0.52692949]
[1770429225079,0.014164,70647.0,70627.0,0.52692949]
[1770429225386,0.014164,70647.0,70628.0,0.85130105]
[1770429225589,0.014164,70647.0,70628.0,0.63855667]
[1770429227190,0.014165,70645.0,70628.0,0.52692949]
[1770429228289,0.014165,70645.0,70628.0,0.63855667]
[1770429228691,0.014165,70645.0,70628.0,0.52692949]
[1770429230180,0.014164,70648.0,70628.0,0.52692949]
[1770429230390,0.55450449,70656.0,70628.0,0.63855667]
[1770429230790,0.014164,70648.0,70628.0,0.63855667]
[1770429231494,0.015164,70648.0,70628.0,0.63855667]
[1770429232195,0.014164,70648.0,70628.0,0.65272467]
[1770429232494,0.014164,70648.0,70630.0,0.52692949]
[1770429234095,0.014164,70645.0,70630.0,0.52692949]
[1770429234986,0.005,70661.0,70633.0,0.52692949]
[1770429235193,0.014163,70652.0,70633.0,0.52692949]
[1770429235898,0.014163,70655.0,70633.0,0.52692949]
[1770429236289,0.014163,70653.0,70633.0,0.52692949]
[1770429238695,0.014163,70654.0,70635.0,0.52692949]
[1770429240400,0.014163,70652.0,70635.0,0.52692949]
[1770429241993,0.54950449,70659.0,70625.0,0.52692949]
[1770429242203,0.54950449,70659.0,70625.0,0.50985949]
[1770429242500,0.014165,70641.0,70625.0,0.50985949]
[1770429242705,0.54950449,70634.0,70610.0,0.52692949]
[1770429242888,0.54950449,70642.0,70612.0,0.52692949]
[1770429243092,0.014164,70649.0,70623.0,0.52692949]
[1770429243290,0.54950449,70660.0,70638.0,0.52692949]
[1770429243495,0.014162,70656.0,70638.0,0.52692949]
[1770429243794,0.014162,70657.0,70638.0,0.52692949]
[1770429243996,0.005,70661.0,70638.0,0.52692949]
[1770429244491,0.55450449,70661.0,70638.0,0.52692949]
[1770429245501,0.014162,70657.0,70638.0,0.52692949]
[1770429245800,0.019161,70661.0,70640.0,0.52886772]
[1770429246100,0.54606789,70660.0,70640.0,0.52886772]
[1770429246603,0.014163,70651.0,70640.0,0.52886772]
[1770429247398,0.014163,70654.0,70640.0,0.52886772]
[1770429250103,0.54606789,70660.0,70640.0,0.52886772]
[1770429250294,0.014163,70651.0,70640.0,0.52886772]
[1770429250495,0.014164,70649.0,70636.0,0.55894535]
[1770429251307,0.014163,70652.0,70636.0,0.55894535]
[1770429253908,0.014163,70655.0,70636.0,0.55894535]
[1770429254110,0.014163,70653.0,70636.0,0.55326535]
[1770429254607,0.014163,70653.0,70644.0,0.05257549]
[1770429255695,0.014163,70653.0,70648.0,0.05257549]
[1770429256010,0.005,70661.0,70648.0,0.61152084]
[1770429256306,0.52791887,70674.0,70648.0,0.61152084]
[1770429256607,0.005,70674.0,70648.0,0.61152084]
[1770429256803,0.005,70674.0,70661.0,0.05257549]
[1770429257007,0.005,70679.0,70661.0,0.05257549]
[1770429257202,0.53291887,70679.0,70661.0,0.05257549]
[1770429257808,0.01416,70669.0,70658.0,0.55894535]
[1770429258011,0.52791887,70672.0,70647.0,0.55894535]
[1770429258304,0.52791887,70669.0,70647.0,0.55894535]
[1770429258508,0.014161,70665.0,70647.0,0.55894535]
[1770429259113,0.01416,70668.0,70647.0,0.55894535]
[1770429259912,0.52791887,70671.0,70647.0,0.55894535]
[1770429260102,0.52791887,70665.0,70647.0,0.55894535]
[1770429260298,0.52791887,70662.0,70638.0,0.55894535]
[1770429260504,0.014162,70659.0,70638.0,0.55894535]
[1770429260912,0.52791887,70662.0,70638.0,0.55894535]
[1770429261112,0.52791887,70662.0,70638.0,0.42413535]
[1770429261312,0.52791887,70662.0,70638.0,0.42270535]
[1770429261712,0.014163,70654.0,70638.0,0.42270535]
[1770429262406,0.014163,70652.0,70638.0,0.42270535]
[1770429262606,0.014163,70655.0,70638.0,0.42270535]
[1770429263415,0.52791887,70656.0,70638.0,0.42270535]
[1770429263616,0.52791887,70656.0,70638.0,0.28078535]
[1770429264208,0.014164,70649.0,70638.0,0.28078535]
[1770429264916,0.014164,70649.0,70631.0,0.55894535]
[1770429265215,0.014164,70649.0,70631.0,0.55468535]
[1770429266209,0.014164,70647.0,70631.0,0.55468535]
[1770429266910,0.52791887,70641.0,70622.0,0.11162718]
[1770429267115,0.014167,70632.0,70618.0,0.11162718]
[1770429267309,0.014167,70632.0,70617.0,0.55894535]
[1770429267710,0.014169,70622.0,70609.0,0.11162718]
[1770429268011,0.014169,70625.0,70604.0,0.55894535]
[1770429269415,0.014168,70628.0,70606.0,0.55894535]
[1770429269613,0.52791887,70625.0,70599.0,0.55894535]
[1770429269918,0.014169,70623.0,70599.0,0.55894535]
[1770429270116,0.52791887,70622.0,70599.0,0.55894535]
[1770429270317,0.52791887,70619.0,70599.0,0.55894535]
[1770429272616,0.014169,70621.0,70599.0,0.55894535]
[1770429272818,0.014169,70624.0,70601.0,0.55894535]
[1770429273522,0.52791887,70626.0,70603.0,0.55894535]
[1770429273820,0.54208687,70626.0,70603.0,0.55894535]
[1770429274613,0.014168,70626.0,70603.0,0.55894535]
[1770429275922,0.014169,70624.0,70603.0,0.55894535]
[1770429276515,0.52791887,70633.0,70611.0,0.5396052]
[1770429276516,0.014167,70632.0,70611.0,0.5396052]
[1770429276709,0.52791887,70633.0,70611.0,0.5396052]
[1770429277111,0.014167,70635.0,70611.0,0.5396052]
[1770429277311,0.014167,70633.0,70613.0,0.5396052]
[1770429277511,0.014167,70631.0,70613.0,0.5396052]
[1770429277921,0.014167,70634.0,70613.0,0.5396052]
[1770429280523,0.014167,70632.0,70613.0,0.5396052]
[1770429281425,0.014168,70630.0,70613.0,0.5396052]
[1770429281719,0.56154048,70634.0,70603.0,0.11162718]
[1770429282020,0.01417,70620.0,70604.0,0.3976352]
[1770429282228,0.57571048,70620.0,70597.0,0.51373976]
[1770429282424,0.56154048,70620.0,70599.0,0.52791376]
[1770429282724,0.56154048,70620.0,70599.0,0.51373976]
[1770429282924,0.014166,70638.0,70599.0,0.51373976]
[1770429282925,0.57571048,70619.0,70599.0,0.51373976]
[1770429285420,0.56154048,70619.0,70599.0,0.51373976]
[1770429286525,0.57570848,70626.0,70602.0,0.51494257]
[1770429286722,0.014168,70626.0,70602.0,0.51494257]
[1770429287223,0.014168,70626.0,70602.0,0.52911557]
[1770429288027,0.014169,70624.0,70602.0,0.51494257]
[1770429288414,0.014169,70622.0,70602.0,0.51494257]
[1770429288617,0.57571048,70618.0,70593.0,0.50264119]
[1770429289928,0.57571048,70618.0,70595.0,0.5256743]
[1770429290620,0.56154048,70618.0,70597.0,0.5256743]
[1770429290820,0.014169,70621.0,70597.0,0.5256743]
[1770429291221,0.01417,70619.0,70597.0,0.5256743]
[1770429291820,0.56154048,70626.0,70597.0,0.5256743]
[1770429291821,0.01417,70617.0,70597.0,0.5256743]
[1770429292020,0.014169,70621.0,70597.0,0.5256743]
[1770429292623,0.014166,70638.0,70597.0,0.5256743]
[1770429292624,0.01417,70616.0,70597.0,0.5256743]
[1770429292820,0.56154048,70623.0,70597.0,0.5256743]
[1770429293025,0.01417,70617.0,70597.0,0.5256743]
[1770429293328,0.57571048,70620.0,70597.0,0.5256743]
[1770429293526,0.56154048,70620.0,70597.0,0.5256743]
[1770429294228,0.014171,70614.0,70597.0,0.5256743]
[1770429295030,0.01417,70617.0,70597.0,0.5256743]
[1770429296725,0.56154048,70620.0,70597.0,0.5256743]
[1770429297436,0.01417,70619.0,70597.0,0.5256743]
[1770429297827,0.01417,70617.0,70597.0,0.5256743]
[1770429298833,0.014169,70621.0,70597.0,0.5398483]
[1770429299028,0.014169,70621.0,70598.0,0.3244648]
[1770429299230,0.014169,70621.0,70599.0,0.54355215]
[1770429299431,0.014169,70621.0,70599.0,0.65517933]
[1770429299631,0.014169,70624.0,70602.0,0.52937815]
[1770429299833,0.014169,70622.0,70602.0,0.52937815]
[1770429300033,0.014169,70623.0,70602.0,0.52937815]
[1770429300229,0.014169,70624.0,70602.0,0.52937815]
[1770429300629,0.014168,70627.0,70604.0,0.52449804]
[1770429300931,0.014166,70638.0,70604.0,0.52449804]
[1770429300932,0.014169,70621.0,70604.0,0.52449804]
[1770429301636,0.56154048,70624.0,70600.0,0.11162718]
[1770429301828,0.56154048,70624.0,70598.0,0.11182718]
[1770429302031,0.01417,70616.0,70598.0,0.65029283]
[1770429302230,0.01417,70616.0,70598.0,0.65009283]
[1770429302432,0.014171,70613.0,70598.0,0.39646565]
[1770429302644,0.56154048,70612.0,70596.0,0.11162718]
[1770429302829,0.56154048,70612.0,70584.0,0.27852876]
[1770429302830,0.56154048,70600.0,70584.0,0.16593201]
[1770429303034,0.014175,70595.0,70579.0,0.16593201]
[1770429303239,0.014174,70598.0,70578.0,0.39646565]
[1770429303434,0.014171,70611.0,70580.0,0.39646565]
[1770429303632,0.56154048,70607.0,70582.0,0.39646565]
[1770429303836,0.56154048,70597.0,70576.0,0.16593201]
[1770429304038,0.56154048,70597.0,70577.0,0.21289259]
[1770429304039,0.014175,70593.0,70577.0,0.21289259]
[1770429304335,0.014175,70593.0,70575.0,0.39742021]
[1770429304738,0.014174,70596.0,70575.0,0.39742021]
[1770429305138,0.014174,70596.0,70567.0,0.39762021]
[1770429305338,0.014177,70585.0,70569.0,0.0002]
[1770429306334,0.56154048,70597.0,70569.0,0.0002]
[1770429306540,0.014177,70581.0,70567.0,0.39742021]
[1770429309641,0.014176,70590.0,70567.0,0.39742021]
[1770429311241,0.562521,70606.0,70572.0,0.39077931]
[1770429311540,0.014174,70597.0,70574.0,0.39077931]
[1770429312140,0.014174,70597.0,70574.0,0.40495831]
[1770429312437,0.014174,70597.0,70574.0,0.39077931]
[1770429312639,0.562521,70606.0,70579.0,0.39499437]
[1770429312839,0.014173,70604.0,70579.0,0.39499437]
[1770429313240,0.014172,70608.0,70586.0,0.39499437]
[1770429313437,0.014172,70608.0,70575.0,0.0002]
[1770429313438,0.562521,70626.0,70593.0,0.39499437]
[1770429313634,0.562521,70624.0,70593.0,0.39499437]
[1770429313843,0.001,70604.0,70593.0,0.39499437]
[1770429314142,0.562521,70620.0,70593.0,0.39499437]
[1770429314538,0.01417,70616.0,70593.0,0.39499437]
[1770429314939,0.014171,70612.0,70593.0,0.39499437]
[1770429315534,0.014171,70612.0,70581.0,0.20751138]
[1770429315535,0.562521,70620.0,70595.0,0.38790948]
[1770429316443,0.57669,70620.0,70595.0,0.38790948]
[1770429317336,0.01417,70618.0,70595.0,0.38790948]
[1770429318047,0.01417,70616.0,70595.0,0.38790948]